[Event "*** SCC Grand Prix: Titled Tuesday Blitz"]
[Site "Chess.com"]
[Date "2020.06.23"]
[Round "7"]
[White "Jumbo"]
[Black "DenLaz"]
[Result "1-0"]
[WhiteElo "2849"]
[BlackElo "2707"]
[TimeControl "180+1"]
[EndTime "11:18:40 PDT"]
[Termination "Jumbo won by checkmate"]

1. d4 {[%clk 0:03:00.9]} 1... d5 {[%clk 0:02:59.3]} 2. Bf4 {[%clk 0:02:59.9]}
2... Nf6 {[%clk 0:02:58.5]} 3. e3 {[%clk 0:02:55.5]} 3... e6 {[%clk 0:02:58.5]}
4. Nf3 {[%clk 0:02:50.8]} 4... c5 {[%clk 0:02:56.4]} 5. c3 {[%clk 0:02:50.4]}
5... Bd6 {[%clk 0:02:53.8]} 6. Bg3 {[%clk 0:02:44.6]} 6... Qc7 {[%clk
0:02:51.9]} 7. Nbd2 {[%clk 0:02:43.4]} 7... Nbd7 {[%clk 0:02:50.5]} 8. Rc1
{[%clk 0:02:43.8]} 8... O-O {[%clk 0:02:40.4]} 9. c4 {[%clk 0:02:42.9]} 9... b6
{[%clk 0:02:29.5]} 10. b4 {[%clk 0:02:36.5]} 10... Bb7 {[%clk 0:02:14.9]} 11.
Be2 {[%clk 0:02:24.2]} 11... Rad8 {[%clk 0:02:05.7]} 12. O-O {[%clk 0:02:17.6]}
12... Bxg3 {[%clk 0:02:03.7]} 13. hxg3 {[%clk 0:02:18.5]} 13... dxc4 {[%clk
0:02:02.1]} 14. bxc5 {[%clk 0:01:38.8]} 14... bxc5 {[%clk 0:01:48.3]} 15. Nxc4
{[%clk 0:01:38.3]} 15... Qb8 {[%clk 0:01:36.7]} 16. Na5 {[%clk 0:01:29.8]} 16...
Ba8 {[%clk 0:01:00.8]} 17. Qa4 {[%clk 0:01:16.5]} 17... Nb6 {[%clk 0:00:43.1]}
18. Qa3 {[%clk 0:01:14.2]} 18... cxd4 {[%clk 0:00:41.2]} 19. Nxd4 {[%clk
0:01:15.1]} 19... Qd6 {[%clk 0:00:41.2]} 20. Qxd6 {[%clk 0:01:03.5]} 20... Rxd6
{[%clk 0:00:42.1]} 21. Rc7 {[%clk 0:01:02.6]} 21... Rd7 {[%clk 0:00:41.5]} 22.
Rfc1 {[%clk 0:01:02.8]} 22... g6 {[%clk 0:00:18.9]} 23. Rxd7 {[%clk 0:00:56]}
23... Nfxd7 {[%clk 0:00:14.6]} 24. Rc7 {[%clk 0:00:56.4]} 24... Bd5 {[%clk
0:00:13.8]} 25. a3 {[%clk 0:00:55.9]} 25... Rc8 {[%clk 0:00:11.2]} 26. Rxa7
{[%clk 0:00:54.7]} 26... Rc1+ {[%clk 0:00:11.7]} 27. Kh2 {[%clk 0:00:54.2]}
27... Ra1 {[%clk 0:00:12.1]} 28. Nac6 {[%clk 0:00:50.8]} 28... Nc5 {[%clk
0:00:11]} 29. f3 {[%clk 0:00:35.8]} 29... Bxc6 {[%clk 0:00:09.2]} 30. Nxc6
{[%clk 0:00:35.3]} 30... Nd5 {[%clk 0:00:09.9]} 31. e4 {[%clk 0:00:34.7]} 31...
Ne3 {[%clk 0:00:10.1]} 32. Ne5 {[%clk 0:00:13.7]} 32... Ra2 {[%clk 0:00:09.6]}
33. Bb5 {[%clk 0:00:14.3]} 33... Rxg2+ {[%clk 0:00:08.7]} 34. Kh3 {[%clk
0:00:14.8]} 34... Rg1 {[%clk 0:00:05.4]} 35. g4 {[%clk 0:00:14.9]} 35... f6
{[%clk 0:00:04.1]} 36. Nd3 {[%clk 0:00:09.7]} 36... Nxd3 {[%clk 0:00:03.8]} 37.
Bxd3 {[%clk 0:00:10.4]} 37... Rd1 {[%clk 0:00:04.5]} 38. Bb5 {[%clk 0:00:07.6]}
38... Rb1 {[%clk 0:00:03.8]} 39. a4 {[%clk 0:00:07.8]} 39... Nd1 {[%clk
0:00:03.1]} 40. Rc7 {[%clk 0:00:07.3]} 40... Nf2+ {[%clk 0:00:02.8]} 41. Kg3
{[%clk 0:00:07.4]} 41... Nh1+ {[%clk 0:00:03.2]} 42. Kg2 {[%clk 0:00:07.6]}
42... h5 {[%clk 0:00:01.5]} 43. gxh5 {[%clk 0:00:06.8]} 43... gxh5 {[%clk
0:00:02.4]} 44. Bc4 {[%clk 0:00:07.3]} 44... h4 {[%clk 0:00:02.8]} 45. Bxe6+
{[%clk 0:00:07.3]} 45... Kh8 {[%clk 0:00:03.2]} 46. a5 {[%clk 0:00:07.1]} 46...
Ra1 {[%clk 0:00:02.1]} 47. Bc4 {[%clk 0:00:04.3]} 47... Ng3 {[%clk 0:00:02.2]}
48. a6 {[%clk 0:00:04.6]} 48... Ra4 {[%clk 0:00:01.3]} 49. Bb5 {[%clk
0:00:04.1]} 49... Ra5 {[%clk 0:00:01.1]} 50. a7 {[%clk 0:00:04.1]} 50... Nh5
{[%clk 0:00:02]} 51. Kh3 {[%clk 0:00:03.3]} 51... Nf4+ {[%clk 0:00:02.9]} 52.
Kxh4 {[%clk 0:00:03.7]} 52... Ne6 {[%clk 0:00:02.9]} 53. Rc8+ {[%clk 0:00:04.1]}
53... Kg7 {[%clk 0:00:02.7]} 54. a8=Q {[%clk 0:00:05]} 54... Rxb5 {[%clk
0:00:03.1]} 55. Qc6 {[%clk 0:00:04.2]} 55... Re5 {[%clk 0:00:02.6]} 56. Qd7+
{[%clk 0:00:04.2]} 56... Kh6 {[%clk 0:00:01.8]} 57. Rh8+ {[%clk 0:00:04.3]}
57... Kg6 {[%clk 0:00:02.3]} 58. Qh7# {[%clk 0:00:04.9]} 1-0

[Event "*** SCC Grand Prix: Titled Tuesday Blitz"]
[Site "Chess.com"]
[Date "2020.06.23"]
[Round "7"]
[White "blitzking1729"]
[Black "MathiasWomacka"]
[Result "0-1"]
[WhiteElo "2566"]
[BlackElo "2440"]
[TimeControl "180+1"]
[EndTime "11:18:41 PDT"]
[Termination "MathiasWomacka won by resignation"]

1. d4 {[%clk 0:02:59.4]} 1... Nf6 {[%clk 0:02:59.1]} 2. Bg5 {[%clk 0:02:58.7]}
2... Ne4 {[%clk 0:02:58.6]} 3. Bf4 {[%clk 0:02:58.5]} 3... c5 {[%clk 0:02:58.6]}
4. f3 {[%clk 0:02:58.4]} 4... Qa5+ {[%clk 0:02:58.4]} 5. c3 {[%clk 0:02:58.7]}
5... Nf6 {[%clk 0:02:58.5]} 6. d5 {[%clk 0:02:58.9]} 6... Qb6 {[%clk 0:02:58.8]}
7. Bc1 {[%clk 0:02:57.9]} 7... e6 {[%clk 0:02:58.4]} 8. e4 {[%clk 0:02:57.9]}
8... exd5 {[%clk 0:02:58.6]} 9. exd5 {[%clk 0:02:58.4]} 9... Bd6 {[%clk
0:02:59.2]} 10. c4 {[%clk 0:02:58.5]} 10... O-O {[%clk 0:02:55.1]} 11. Bd3
{[%clk 0:02:58.1]} 11... Re8+ {[%clk 0:02:55.1]} 12. Ne2 {[%clk 0:02:58]} 12...
Be5 {[%clk 0:02:33.5]} 13. O-O {[%clk 0:02:39.2]} 13... d6 {[%clk 0:02:33.6]}
14. Nbc3 {[%clk 0:02:37.4]} 14... Nbd7 {[%clk 0:02:30.2]} 15. Kh1 {[%clk
0:02:30.3]} 15... Nf8 {[%clk 0:02:06.7]} 16. Qc2 {[%clk 0:02:27.7]} 16... Ng6
{[%clk 0:02:00]} 17. Rb1 {[%clk 0:02:21.5]} 17... Bd7 {[%clk 0:01:51.9]} 18. a3
{[%clk 0:02:18.6]} 18... Qd8 {[%clk 0:01:41.9]} 19. f4 {[%clk 0:02:16.1]} 19...
Bxc3 {[%clk 0:01:34]} 20. Nxc3 {[%clk 0:02:15.6]} 20... Ng4 {[%clk 0:01:31.2]}
21. g3 {[%clk 0:01:59.5]} 21... Ne3 {[%clk 0:01:20.4]} 22. Bxe3 {[%clk
0:01:57.1]} 22... Rxe3 {[%clk 0:01:21.3]} 23. Ne4 {[%clk 0:01:53.1]} 23... Qe7
{[%clk 0:01:18.3]} 24. b4 {[%clk 0:01:15.7]} 24... Bf5 {[%clk 0:01:02]} 25. Rbe1
{[%clk 0:00:29.4]} 25... Bxe4+ {[%clk 0:00:55.7]} 26. Bxe4 {[%clk 0:00:29.1]}
26... Rxe1 {[%clk 0:00:55.8]} 27. Rxe1 {[%clk 0:00:28.8]} 27... f5 {[%clk
0:00:55.2]} 28. bxc5 {[%clk 0:00:27.4]} 28... fxe4 {[%clk 0:00:52.7]} 29. cxd6
{[%clk 0:00:27]} 29... Qxd6 {[%clk 0:00:53]} 30. Qxe4 {[%clk 0:00:23.5]} 30...
Rc8 {[%clk 0:00:50.1]} 31. Re3 {[%clk 0:00:16.5]} 31... b6 {[%clk 0:00:38.4]}
32. f5 {[%clk 0:00:11]} 32... Nf8 {[%clk 0:00:36.9]} 33. Rf3 {[%clk 0:00:10.4]}
33... Qf6 {[%clk 0:00:27.5]} 34. g4 {[%clk 0:00:07.4]} 34... h6 {[%clk
0:00:26.7]} 35. Kg2 {[%clk 0:00:07.3]} 35... Rc7 {[%clk 0:00:23.1]} 36. h4
{[%clk 0:00:06.6]} 36... Qxh4 {[%clk 0:00:21.4]} 37. f6 {[%clk 0:00:06]} 37...
gxf6 {[%clk 0:00:21.5]} 38. d6 {[%clk 0:00:05.1]} 38... Rg7 {[%clk 0:00:20.7]}
39. Rg3 {[%clk 0:00:04.2]} 39... Qg5 {[%clk 0:00:18.5]} 40. Kh3 {[%clk
0:00:03.1]} 40... Rd7 {[%clk 0:00:13.5]} 41. Rd3 {[%clk 0:00:01.9]} 41... Kg7
{[%clk 0:00:12.5]} 42. Rd5 {[%clk 0:00:02.1]} 42... Qc1 {[%clk 0:00:09.2]} 43.
Qf5 {[%clk 0:00:02.3]} 43... Qc3+ {[%clk 0:00:08.9]} 44. Rd3 {[%clk 0:00:02.5]}
44... Qxc4 {[%clk 0:00:08.8]} 45. Re3 {[%clk 0:00:02.9]} 45... Qf7 {[%clk
0:00:05.8]} 46. Rd3 {[%clk 0:00:02.7]} 46... Ng6 {[%clk 0:00:05.8]} 47. Kg3
{[%clk 0:00:02.4]} 47... Ne5 {[%clk 0:00:06]} 48. Rd1 {[%clk 0:00:02]} 48...
Qb3+ {[%clk 0:00:04.8]} 49. Kg2 {[%clk 0:00:02.6]} 49... Qxd1 {[%clk 0:00:04.8]}
50. g5 {[%clk 0:00:01.5]} 50... Qe2+ {[%clk 0:00:04.6]} 51. Kg3 {[%clk
0:00:01.9]} 51... hxg5 {[%clk 0:00:05.5]} 52. Qe6 {[%clk 0:00:01.9]} 52... Qe3+
{[%clk 0:00:05.4]} 53. Kg2 {[%clk 0:00:02.1]} 53... Qe4+ {[%clk 0:00:05.1]} 54.
Kf2 {[%clk 0:00:02.3]} 54... Nd3+ {[%clk 0:00:04.2]} 0-1

[Event "*** SCC Grand Prix: Titled Tuesday Blitz"]
[Site "Chess.com"]
[Date "2020.06.23"]
[Round "7"]
[White "szachuspl"]
[Black "Kopytkin"]
[Result "1-0"]
[WhiteElo "2569"]
[BlackElo "2397"]
[TimeControl "180+1"]
[EndTime "11:18:44 PDT"]
[Termination "szachuspl won on time"]

1. d4 {[%clk 0:03:00.9]} 1... d5 {[%clk 0:02:58.4]} 2. c4 {[%clk 0:03:00.8]}
2... c6 {[%clk 0:02:58.8]} 3. Nc3 {[%clk 0:02:59.7]} 3... Nf6 {[%clk 0:02:59.3]}
4. Nf3 {[%clk 0:02:59.7]} 4... a6 {[%clk 0:02:59]} 5. e3 {[%clk 0:02:56.1]} 5...
b5 {[%clk 0:02:58.5]} 6. b3 {[%clk 0:02:56.2]} 6... Bg4 {[%clk 0:02:58]} 7. Be2
{[%clk 0:02:56.2]} 7... e6 {[%clk 0:02:56.7]} 8. O-O {[%clk 0:02:56.2]} 8...
Nbd7 {[%clk 0:02:56.2]} 9. a4 {[%clk 0:02:55.7]} 9... b4 {[%clk 0:02:39.2]} 10.
Na2 {[%clk 0:02:55.7]} 10... Ne4 {[%clk 0:02:38.4]} 11. Bd2 {[%clk 0:02:50.7]}
11... a5 {[%clk 0:02:38.3]} 12. Nc1 {[%clk 0:02:50.5]} 12... f5 {[%clk
0:02:31.4]} 13. cxd5 {[%clk 0:02:45.7]} 13... cxd5 {[%clk 0:02:25.5]} 14. Nd3
{[%clk 0:02:44.3]} 14... Bd6 {[%clk 0:02:25.3]} 15. h3 {[%clk 0:02:44]} 15...
Bxf3 {[%clk 0:02:20.6]} 16. Bxf3 {[%clk 0:02:38.4]} 16... O-O {[%clk 0:02:18.1]}
17. Rc1 {[%clk 0:02:37.2]} 17... Qh4 {[%clk 0:02:13.8]} 18. Rc6 {[%clk
0:02:31.2]} 18... Ndf6 {[%clk 0:02:12]} 19. Ne5 {[%clk 0:02:26.2]} 19... g5
{[%clk 0:01:35.1]} 20. Be1 {[%clk 0:02:19.7]} 20... Rad8 {[%clk 0:01:07.2]} 21.
Bxe4 {[%clk 0:02:01]} 21... Nxe4 {[%clk 0:01:06.1]} 22. f3 {[%clk 0:01:43.5]}
22... Ng3 {[%clk 0:01:05.7]} 23. Bxg3 {[%clk 0:01:43.3]} 23... Qxg3 {[%clk
0:01:06.6]} 24. Qe1 {[%clk 0:01:30.6]} 24... Bxe5 {[%clk 0:01:06.3]} 25. dxe5
{[%clk 0:01:27.8]} 25... Qxe5 {[%clk 0:01:06.8]} 26. Rc5 {[%clk 0:01:20.7]}
26... Rc8 {[%clk 0:00:55.3]} 27. Rxa5 {[%clk 0:01:08.4]} 27... Rc3 {[%clk
0:00:46.4]} 28. Qd1 {[%clk 0:00:34]} 28... Qxe3+ {[%clk 0:00:42.4]} 29. Kh1
{[%clk 0:00:33.7]} 29... Rfc8 {[%clk 0:00:42.8]} 30. Re1 {[%clk 0:00:32.6]}
30... Qf4 {[%clk 0:00:37.7]} 31. Qe2 {[%clk 0:00:29.4]} 31... R8c6 {[%clk
0:00:30.4]} 32. Ra8+ {[%clk 0:00:27.7]} 32... Kg7 {[%clk 0:00:30.2]} 33. Ra7+
{[%clk 0:00:25.3]} 33... Kg6 {[%clk 0:00:29.1]} 34. Re7 {[%clk 0:00:21.8]} 34...
e5 {[%clk 0:00:10.9]} 35. Rxe5 {[%clk 0:00:21.4]} 35... Rf6 {[%clk 0:00:08.2]}
36. Re6 {[%clk 0:00:19.2]} 36... Rc6 {[%clk 0:00:07.9]} 37. Rxf6+ {[%clk
0:00:19]} 37... Rxf6 {[%clk 0:00:08.2]} 38. Qe8+ {[%clk 0:00:18.8]} 38... Kh6
{[%clk 0:00:08.6]} 39. Re7 {[%clk 0:00:18.1]} 39... Qc1+ {[%clk 0:00:07.1]} 40.
Re1 {[%clk 0:00:18.2]} 40... Qc6 {[%clk 0:00:06.1]} 41. Qe5 {[%clk 0:00:17.5]}
41... Qd6 {[%clk 0:00:06.2]} 42. Qd4 {[%clk 0:00:16.6]} 42... Re6 {[%clk
0:00:04.7]} 43. Rd1 {[%clk 0:00:15.1]} 43... Qe5 {[%clk 0:00:05.1]} 44. Qxd5
{[%clk 0:00:12.7]} 44... Qxd5 {[%clk 0:00:05.3]} 45. Rxd5 {[%clk 0:00:13.6]}
45... Re3 {[%clk 0:00:05.7]} 46. Rxf5 {[%clk 0:00:12.7]} 46... Rxb3 {[%clk
0:00:04.8]} 47. Rb5 {[%clk 0:00:13.4]} 47... Rb1+ {[%clk 0:00:04.4]} 48. Kh2
{[%clk 0:00:13.7]} 48... b3 {[%clk 0:00:04.9]} 49. a5 {[%clk 0:00:13.8]} 49...
b2 {[%clk 0:00:05]} 50. Kg3 {[%clk 0:00:13.8]} 50... Kg6 {[%clk 0:00:04.7]} 51.
a6 {[%clk 0:00:14]} 51... Ra1 {[%clk 0:00:04.6]} 52. Rb6+ {[%clk 0:00:11.8]}
52... Kf5 {[%clk 0:00:04.2]} 53. Rxb2 {[%clk 0:00:12.7]} 53... Rxa6 {[%clk
0:00:03.9]} 54. Rb5+ {[%clk 0:00:12.6]} 54... Kg6 {[%clk 0:00:04.5]} 55. h4
{[%clk 0:00:13]} 55... h6 {[%clk 0:00:04.7]} 56. hxg5 {[%clk 0:00:11.1]} 56...
hxg5 {[%clk 0:00:05.6]} 57. Rc5 {[%clk 0:00:10.1]} 57... Rd6 {[%clk 0:00:05.4]}
58. Re5 {[%clk 0:00:09.5]} 58... Rb6 {[%clk 0:00:05.3]} 59. Re8 {[%clk
0:00:09.5]} 59... Rc6 {[%clk 0:00:05.2]} 60. Re4 {[%clk 0:00:09.7]} 60... Rb6
{[%clk 0:00:04.9]} 61. Kg4 {[%clk 0:00:10.3]} 61... Rf6 {[%clk 0:00:03.8]} 62.
g3 {[%clk 0:00:10.7]} 62... Rd6 {[%clk 0:00:02.7]} 63. Kh3 {[%clk 0:00:09.4]}
63... Kf5 {[%clk 0:00:02.3]} 64. Rb4 {[%clk 0:00:08.7]} 1-0

[Event "*** SCC Grand Prix: Titled Tuesday Blitz"]
[Site "Chess.com"]
[Date "2020.06.23"]
[Round "7"]
[White "IwkooO"]
[Black "attack2mateU"]
[Result "0-1"]
[WhiteElo "2527"]
[BlackElo "2679"]
[TimeControl "180+1"]
[EndTime "11:18:47 PDT"]
[Termination "attack2mateU won on time"]

1. e4 {[%clk 0:03:00.2]} 1... c5 {[%clk 0:02:59.6]} 2. Nf3 {[%clk 0:03:00.1]}
2... d6 {[%clk 0:02:59.4]} 3. d4 {[%clk 0:03:00.7]} 3... cxd4 {[%clk 0:02:59.9]}
4. Nxd4 {[%clk 0:02:58.4]} 4... Nf6 {[%clk 0:03:00.4]} 5. Nc3 {[%clk 0:02:53.4]}
5... a6 {[%clk 0:03:00.3]} 6. Be3 {[%clk 0:02:53.3]} 6... e5 {[%clk 0:02:59.7]}
7. Nb3 {[%clk 0:02:53.5]} 7... Be6 {[%clk 0:03:00]} 8. Qd2 {[%clk 0:02:53.5]}
8... Nbd7 {[%clk 0:02:57.9]} 9. f4 {[%clk 0:02:52.5]} 9... b5 {[%clk 0:02:55.1]}
10. O-O-O {[%clk 0:02:45.4]} 10... Qc7 {[%clk 0:02:52.5]} 11. h3 {[%clk
0:02:44.3]} 11... h5 {[%clk 0:02:38.1]} 12. Kb1 {[%clk 0:02:31.5]} 12... Be7
{[%clk 0:02:35.7]} 13. Bd3 {[%clk 0:02:10.3]} 13... h4 {[%clk 0:02:28.6]} 14. f5
{[%clk 0:02:01.5]} 14... Bc4 {[%clk 0:02:26.6]} 15. Qe2 {[%clk 0:01:59.2]} 15...
Rc8 {[%clk 0:02:16.5]} 16. Nd2 {[%clk 0:01:48.5]} 16... d5 {[%clk 0:02:02.4]}
17. exd5 {[%clk 0:01:17.8]} 17... Nxd5 {[%clk 0:02:02.6]} 18. Nxd5 {[%clk
0:01:17.7]} 18... Bxd5 {[%clk 0:02:02.4]} 19. Rc1 {[%clk 0:01:03.1]} 19... Nc5
{[%clk 0:01:49.5]} 20. Bxc5 {[%clk 0:01:00.5]} 20... Qxc5 {[%clk 0:01:46.6]} 21.
Rhe1 {[%clk 0:00:55.6]} 21... O-O {[%clk 0:01:30]} 22. Qh5 {[%clk 0:00:30.2]}
22... Bf6 {[%clk 0:01:26.3]} 23. Ne4 {[%clk 0:00:28.7]} 23... Bxe4 {[%clk
0:01:25.8]} 24. Rxe4 {[%clk 0:00:28.5]} 24... Rfd8 {[%clk 0:01:13.8]} 25. Qe2
{[%clk 0:00:19.8]} 25... Rb8 {[%clk 0:00:56.2]} 26. Re1 {[%clk 0:00:15.6]} 26...
a5 {[%clk 0:00:56]} 27. Qe3 {[%clk 0:00:15]} 27... Qc6 {[%clk 0:00:49.6]} 28.
Qe2 {[%clk 0:00:12]} 28... b4 {[%clk 0:00:49]} 29. Rc4 {[%clk 0:00:09.5]} 29...
Qd5 {[%clk 0:00:46.2]} 30. Qe4 {[%clk 0:00:09.7]} 30... Qd7 {[%clk 0:00:36]} 31.
Qc6 {[%clk 0:00:08.4]} 31... Qa7 {[%clk 0:00:36]} 32. Qc5 {[%clk 0:00:08.1]}
32... Qd7 {[%clk 0:00:22.5]} 33. Qxa5 {[%clk 0:00:06.6]} 33... e4 {[%clk
0:00:21.1]} 34. Rcxe4 {[%clk 0:00:05.9]} 34... Qd6 {[%clk 0:00:15.8]} 35. Qa6
{[%clk 0:00:04.5]} 35... Qg3 {[%clk 0:00:14]} 36. R4e2 {[%clk 0:00:04.7]} 36...
Ra8 {[%clk 0:00:12.6]} 37. Qc4 {[%clk 0:00:04.8]} 37... Qd6 {[%clk 0:00:11.9]}
38. Qb3 {[%clk 0:00:05.2]} 38... Qc5 {[%clk 0:00:10.3]} 39. Qc4 {[%clk
0:00:05.2]} 39... Qb6 {[%clk 0:00:09.4]} 40. Qb3 {[%clk 0:00:05.5]} 40... Ra7
{[%clk 0:00:09.5]} 41. Re4 {[%clk 0:00:06.1]} 41... Qc6 {[%clk 0:00:08.8]} 42.
Qc4 {[%clk 0:00:05.5]} 42... Qd7 {[%clk 0:00:08.5]} 43. Qxb4 {[%clk 0:00:05.3]}
43... Rda8 {[%clk 0:00:06.6]} 44. a4 {[%clk 0:00:04]} 44... Rb7 {[%clk 0:00:07]}
45. Bb5 {[%clk 0:00:04]} 45... Qc7 {[%clk 0:00:07.4]} 46. Qc4 {[%clk 0:00:04]}
46... Qxc4 {[%clk 0:00:06.8]} 47. Rxc4 {[%clk 0:00:03.9]} 47... Rb6 {[%clk
0:00:07.2]} 48. Rce4 {[%clk 0:00:04.5]} 48... Kf8 {[%clk 0:00:07.5]} 49. Re7
{[%clk 0:00:04.5]} 49... Bxe7 {[%clk 0:00:06.9]} 50. Re4 {[%clk 0:00:04.7]}
50... Rd6 {[%clk 0:00:05.9]} 51. b3 {[%clk 0:00:04.1]} 51... Rd1+ {[%clk
0:00:04.9]} 52. Ka2 {[%clk 0:00:04.7]} 52... Bf6 {[%clk 0:00:05.5]} 53. b4
{[%clk 0:00:05.2]} 53... Ra1+ {[%clk 0:00:04.8]} 54. Kb3 {[%clk 0:00:05.7]}
54... Rb1+ {[%clk 0:00:05.4]} 55. Kc4 {[%clk 0:00:05.9]} 55... Rc8+ {[%clk
0:00:05]} 56. Kd3 {[%clk 0:00:06.4]} 56... Rb2 {[%clk 0:00:05.2]} 57. c4 {[%clk
0:00:02.3]} 57... Rb3+ {[%clk 0:00:04.9]} 58. Kc2 {[%clk 0:00:01.8]} 58... Rxb4
{[%clk 0:00:05.2]} 59. a5 {[%clk 0:00:02.2]} 59... Rb2+ {[%clk 0:00:04.4]} 60.
Kd3 {[%clk 0:00:02.6]} 60... Rd8+ {[%clk 0:00:05]} 61. Ke3 {[%clk 0:00:02.5]}
61... Bg5+ {[%clk 0:00:05.1]} 62. Kf3 {[%clk 0:00:02.8]} 62... Rd3+ {[%clk
0:00:05.4]} 63. Kg4 {[%clk 0:00:02.4]} 63... Rg3+ {[%clk 0:00:05.9]} 64. Kh5
{[%clk 0:00:02.7]} 64... Kg8 {[%clk 0:00:05.8]} 65. Re8+ {[%clk 0:00:02.5]}
65... Kh7 {[%clk 0:00:06.4]} 0-1

[Event "*** SCC Grand Prix: Titled Tuesday Blitz"]
[Site "Chess.com"]
[Date "2020.06.23"]
[Round "7"]
[White "Lupul_Cenusiu"]
[Black "Leonid_Starozhilov"]
[Result "1/2-1/2"]
[WhiteElo "2570"]
[BlackElo "2718"]
[TimeControl "180+1"]
[EndTime "11:18:48 PDT"]
[Termination "Game drawn - insufficient material"]

1. d4 {[%clk 0:03:00.9]} 1... Nf6 {[%clk 0:02:53.3]} 2. c4 {[%clk 0:03:00.3]}
2... g6 {[%clk 0:02:53.1]} 3. Nc3 {[%clk 0:03:00.2]} 3... Bg7 {[%clk 0:02:53.3]}
4. Nf3 {[%clk 0:02:58.4]} 4... d6 {[%clk 0:02:53.7]} 5. g3 {[%clk 0:02:58.4]}
5... O-O {[%clk 0:02:53.7]} 6. Bg2 {[%clk 0:02:58.9]} 6... c6 {[%clk 0:02:54.6]}
7. O-O {[%clk 0:02:58.6]} 7... Bf5 {[%clk 0:02:55.3]} 8. Ne1 {[%clk 0:02:56.8]}
8... e5 {[%clk 0:02:54.1]} 9. d5 {[%clk 0:02:55.5]} 9... cxd5 {[%clk 0:02:45.3]}
10. cxd5 {[%clk 0:02:54.8]} 10... Na6 {[%clk 0:02:42.5]} 11. e4 {[%clk
0:02:54.1]} 11... Bd7 {[%clk 0:02:39.1]} 12. h3 {[%clk 0:02:50.2]} 12... b5
{[%clk 0:02:35.7]} 13. a3 {[%clk 0:02:49.4]} 13... b4 {[%clk 0:02:24.7]} 14.
axb4 {[%clk 0:02:48.4]} 14... Nxb4 {[%clk 0:02:25.6]} 15. Nd3 {[%clk 0:02:43]}
15... a5 {[%clk 0:02:22.8]} 16. Be3 {[%clk 0:02:42.2]} 16... Qe7 {[%clk
0:02:04.5]} 17. Qd2 {[%clk 0:02:38.6]} 17... Nh5 {[%clk 0:01:56.5]} 18. Rfe1
{[%clk 0:02:18.4]} 18... f5 {[%clk 0:01:47.4]} 19. exf5 {[%clk 0:02:17.6]} 19...
Nxd3 {[%clk 0:01:29.2]} 20. f6 {[%clk 0:02:03]} 20... Bxf6 {[%clk 0:01:12.4]}
21. Qxd3 {[%clk 0:02:02.3]} 21... Bg5 {[%clk 0:01:08.4]} 22. Bxg5 {[%clk
0:01:53.2]} 22... Qxg5 {[%clk 0:01:09.3]} 23. Ne4 {[%clk 0:01:53]} 23... Bf5
{[%clk 0:01:02.6]} 24. Nxg5 {[%clk 0:01:47.8]} 24... Bxd3 {[%clk 0:01:02.6]} 25.
Re3 {[%clk 0:01:43.2]} 25... Bb5 {[%clk 0:00:50.6]} 26. Rea3 {[%clk 0:01:42.4]}
26... a4 {[%clk 0:00:32.4]} 27. b3 {[%clk 0:01:41.3]} 27... Ra5 {[%clk
0:00:28.5]} 28. bxa4 {[%clk 0:01:33.8]} 28... Bd7 {[%clk 0:00:28.7]} 29. Ne4
{[%clk 0:01:30.5]} 29... Rfa8 {[%clk 0:00:25.9]} 30. Nxd6 {[%clk 0:01:27.2]}
30... Rxa4 {[%clk 0:00:26.4]} 31. Rxa4 {[%clk 0:01:24.6]} 31... Rxa4 {[%clk
0:00:27.3]} 32. Rxa4 {[%clk 0:01:18.7]} 32... Bxa4 {[%clk 0:00:28.2]} 33. Nc4
{[%clk 0:01:18.2]} 33... Kf7 {[%clk 0:00:24.4]} 34. Nxe5+ {[%clk 0:01:17.7]}
34... Ke7 {[%clk 0:00:24.9]} 35. Ng4 {[%clk 0:01:13.4]} 35... Kd6 {[%clk
0:00:19.8]} 36. Ne3 {[%clk 0:01:09.7]} 36... Bb3 {[%clk 0:00:19.6]} 37. Kf1
{[%clk 0:01:03.5]} 37... Nf6 {[%clk 0:00:17.2]} 38. Ke2 {[%clk 0:01:03.6]} 38...
Nd7 {[%clk 0:00:11.7]} 39. f4 {[%clk 0:01:01.8]} 39... Nc5 {[%clk 0:00:09.8]}
40. h4 {[%clk 0:00:59.9]} 40... Ba2 {[%clk 0:00:07.3]} 41. Bf3 {[%clk
0:00:59.2]} 41... Nd7 {[%clk 0:00:07.4]} 42. h5 {[%clk 0:00:58.9]} 42... gxh5
{[%clk 0:00:07]} 43. Bxh5 {[%clk 0:00:58.8]} 43... Nf6 {[%clk 0:00:07.1]} 44.
Bf3 {[%clk 0:00:57.9]} 44... Bb1 {[%clk 0:00:06.9]} 45. Kd2 {[%clk 0:00:57.4]}
45... Kc5 {[%clk 0:00:07.2]} 46. g4 {[%clk 0:00:55.3]} 46... Kd4 {[%clk
0:00:05.1]} 47. g5 {[%clk 0:00:53.1]} 47... Nd7 {[%clk 0:00:02.7]} 48. Bg4
{[%clk 0:00:41.6]} 48... Nc5 {[%clk 0:00:02.6]} 49. Be6 {[%clk 0:00:40.5]} 49...
Ne4+ {[%clk 0:00:01.9]} 50. Ke2 {[%clk 0:00:40.4]} 50... Bd3+ {[%clk 0:00:01.7]}
51. Kf3 {[%clk 0:00:39.7]} 51... Nd6 {[%clk 0:00:02.6]} 52. Ng4 {[%clk
0:00:36.1]} 52... Be4+ {[%clk 0:00:02.5]} 53. Kf2 {[%clk 0:00:36.1]} 53... Bxd5
{[%clk 0:00:02.8]} 54. Bxd5 {[%clk 0:00:35.3]} 54... Kxd5 {[%clk 0:00:03.7]} 55.
Nf6+ {[%clk 0:00:35]} 55... Ke6 {[%clk 0:00:04.3]} 56. Nxh7 {[%clk 0:00:34.8]}
56... Kf5 {[%clk 0:00:05.1]} 57. Kf3 {[%clk 0:00:34.7]} 57... Nf7 {[%clk
0:00:03.8]} 58. g6 {[%clk 0:00:32.5]} 58... Kxg6 {[%clk 0:00:03.9]} 59. Nf8+
{[%clk 0:00:32.2]} 59... Kf5 {[%clk 0:00:03.3]} 60. Nd7 {[%clk 0:00:31.7]} 60...
Nd6 {[%clk 0:00:03.7]} 61. Nc5 {[%clk 0:00:30.5]} 61... Nc4 {[%clk 0:00:03.4]}
62. Nb3 {[%clk 0:00:30.1]} 62... Nb6 {[%clk 0:00:03.1]} 63. Nd4+ {[%clk
0:00:29.3]} 63... Kf6 {[%clk 0:00:03.7]} 64. Ke4 {[%clk 0:00:29.3]} 64... Nc4
{[%clk 0:00:04.2]} 65. Nb5 {[%clk 0:00:28.4]} 65... Nd2+ {[%clk 0:00:04.2]} 66.
Ke3 {[%clk 0:00:28.4]} 66... Nc4+ {[%clk 0:00:04.4]} 67. Kf3 {[%clk 0:00:28]}
67... Nd2+ {[%clk 0:00:04.7]} 68. Kg4 {[%clk 0:00:28.2]} 68... Nc4 {[%clk
0:00:04.7]} 69. Nc3 {[%clk 0:00:27.8]} 69... Ne3+ {[%clk 0:00:04.8]} 70. Kf3
{[%clk 0:00:27.2]} 70... Nf5 {[%clk 0:00:05.2]} 71. Ne4+ {[%clk 0:00:27.2]}
71... Kg6 {[%clk 0:00:04.9]} 72. Kg4 {[%clk 0:00:27.3]} 72... Ne3+ {[%clk
0:00:05.4]} 73. Kf3 {[%clk 0:00:26.7]} 73... Nd5 {[%clk 0:00:05.4]} 74. Ng3
{[%clk 0:00:23.6]} 74... Nxf4 {[%clk 0:00:05.8]} 1/2-1/2